fUSD/lending_fUSD_20250513
["ID","MTS","AMOUNT","RATE_DAILY","PERIOD"]
[360967026,1747168244920,-400.0,0.00010996,2]
[360967027,1747168244930,-781.66,0.00010996,2]
[360967028,1747168244940,-400.0,0.00010996,2]
[360967029,1747168244949,-400.0,0.00010996,2]
[360967030,1747168244959,-420.5,0.00010996,2]
[360967031,1747168244969,-400.0,0.00010996,2]
[360967032,1747168244978,-400.0,0.00010996,2]
[360967033,1747168244988,-400.0,0.00010996,2]
[360967034,1747168244997,-400.0,0.00010996,2]
[360967035,1747168245007,-444.91022247,0.00010996,2]
[360967036,1747168245018,-597.23,0.00010996,2]
[360967037,1747168245028,-400.0,0.00010996,2]
[360967038,1747168245037,-400.0,0.00010996,2]
[360967039,1747168245047,-400.0,0.00010996,2]
[360967040,1747168245057,-496.3,0.00010996,2]
[360967041,1747168245066,-834.06,0.00010996,2]
[360967042,1747168245076,-400.0,0.00010996,2]
[360967043,1747168245086,-439.19,0.00010996,2]
[360967044,1747168245095,-400.0,0.00010996,2]
[360967045,1747168245105,-400.0,0.00010996,2]
[360967046,1747168245115,-458.54,0.00010996,2]
[360967047,1747168245124,-400.0,0.00010996,2]
[360967048,1747168245135,-400.0,0.00010996,2]
[360967049,1747168245145,-400.0,0.00010996,2]
[360967050,1747168245154,-929.74,0.00010996,2]
[360967051,1747168245164,-400.0,0.00010996,2]
[360967052,1747168245174,-400.0,0.00010996,2]
[360967053,1747168245183,-400.0,0.00010996,2]
[360967054,1747168245193,-400.0,0.00010996,2]
[360967055,1747168245202,-400.0,0.00010996,2]
[360967056,1747168245212,-453.92,0.00010996,2]
[360967057,1747168245222,-400.0,0.00010996,2]
[360967058,1747168245231,-400.0,0.00010996,2]
[360967059,1747168245240,-533.68,0.00010996,2]
[360967060,1747168245249,-400.0,0.00010996,2]
[360967061,1747168245259,-400.0,0.00010996,2]
[360967062,1747168245269,-400.0,0.00010996,2]
[360967063,1747168245279,-423.39,0.00010996,2]
[360967064,1747168245290,-400.0,0.00010996,2]
[360967065,1747168245303,-400.0,0.00010996,2]
[360967066,1747168245314,-571.38,0.00010996,2]
[360967067,1747168245324,-400.0,0.00010996,2]
[360967068,1747168245334,-400.0,0.00010996,2]
[360967069,1747168245343,-400.0,0.00010996,2]
[360967070,1747168245353,-400.0,0.00010996,2]
[360967071,1747168245363,-400.0,0.00010996,2]
[360967072,1747168245372,-400.0,0.00010996,2]
[360967073,1747168245385,-400.0,0.00010996,2]
[360967074,1747168245395,-400.0,0.00010996,2]
[360967075,1747168245405,-573.7,0.00010996,2]
[360967076,1747168245414,-400.0,0.00010996,2]
[360967077,1747168245423,-528.73595381,0.00010996,2]
[360967078,1747168245433,-400.0,0.00010996,2]
[360967079,1747168245442,-400.0,0.00010996,2]
[360967080,1747168245451,-465.43,0.00010996,2]
[360967081,1747168245461,-400.0,0.00010996,2]
[360967082,1747168245470,-603.88,0.00010996,2]
[360967083,1747168245479,-400.0,0.00010996,2]
[360967084,1747168245488,-481.32,0.00010996,2]
[360967085,1747168245497,-400.0,0.00010996,2]
[360967086,1747168245506,-400.0,0.00010996,2]
[360967087,1747168245515,-546.50283956,0.00010996,2]
[360967088,1747168245524,-400.0,0.00010996,2]
[360967089,1747168245533,-400.0,0.00010996,2]
[360967090,1747168245543,-1064.17,0.00010996,2]
[360967091,1747168245552,-230.27969179,0.00010996,2]
[360967092,1747168245561,-715.8,0.00010996,2]
[360967093,1747168245570,-400.0,0.00010996,2]
[360967094,1747168245579,-400.0,0.00010996,2]
[360967095,1747168245589,-400.0,0.00010996,2]
[360967096,1747168245598,-400.0,0.00010996,2]
[360967097,1747168245607,-400.0,0.00010996,2]
[360967098,1747168245616,-400.0,0.00010996,2]
[360967099,1747168245626,-400.0,0.00010996,2]
[360967100,1747168245638,-400.0,0.00010996,2]
[360967101,1747168245647,-400.0,0.00010996,2]
[360967102,1747168245656,-400.0,0.00010996,2]
[360967103,1747168245666,-400.0,0.00010996,2]
[360967104,1747168245675,-400.0,0.00010996,2]
[360967105,1747168245685,-400.0,0.00010996,2]
[360967106,1747168245694,-400.0,0.00010996,2]
[360967107,1747168245704,-400.0,0.00010996,2]
[360967108,1747168245718,-545.92,0.00010996,2]
[360967109,1747168245727,-400.0,0.00010996,2]
[360967110,1747168245737,-544.0,0.00010996,2]
[360967111,1747168245746,-1080.4,0.00010996,2]
[360967112,1747168245757,-400.0,0.00010996,2]
[360967113,1747168245766,-400.0,0.00010996,2]
[360967114,1747168245775,-400.0,0.00010996,2]
[360967115,1747168245786,-400.0,0.00010996,2]
[360967116,1747168245795,-400.0,0.00010996,2]
[360967117,1747168245805,-400.0,0.00010996,2]
[360967118,1747168245815,-489.12840629,0.00010996,2]
[360967119,1747168245824,-549.71,0.00010996,2]
[360967120,1747168245833,-402.47863239,0.00010996,2]
[360967121,1747168245843,-400.0,0.00010996,2]
[360967122,1747168245852,-400.0,0.00010996,2]
[360967123,1747168245862,-400.0,0.00010996,2]
[360967124,1747168245872,-400.0,0.00010996,2]
[360967125,1747168245883,-400.0,0.00010996,2]
[360967126,1747168245893,-400.0,0.00010996,2]
[360967127,1747168245903,-400.0,0.00010996,2]
[360967128,1747168245912,-400.0,0.00010996,2]
[360967129,1747168245921,-400.0,0.00010996,2]
[360967130,1747168245930,-400.0,0.00010996,2]
[360967131,1747168245940,-1078.83,0.00010996,2]
[360967132,1747168245951,-747.43,0.00010996,2]
[360967133,1747168245961,-401.23,0.00010996,2]
[360967134,1747168245970,-865.91,0.00010996,2]
[360967135,1747168245980,-400.0,0.00010996,2]
[360967136,1747168245990,-400.0,0.00010996,2]
[360967137,1747168245999,-400.0,0.00010996,2]
[360967138,1747168246008,-400.0,0.00010996,2]
[360967139,1747168246018,-400.0,0.00010996,2]
[360967140,1747168246028,-499.59,0.00010996,2]
[360967141,1747168246040,-1758.31,0.00010996,2]
[360967142,1747168246049,-400.0,0.00010996,2]
[360967143,1747168246059,-400.0,0.00010996,2]
[360967144,1747168246069,-400.0,0.00010996,2]
[360967145,1747168246079,-1106.32,0.00010996,2]
[360967146,1747168246088,-400.0,0.00010996,2]
[360967147,1747168246097,-729.48,0.00010996,2]
[360967148,1747168246107,-1052.27,0.00010996,2]
[360967149,1747168246116,-508.73620009,0.00010996,2]
[360967150,1747168246126,-337.12526638,0.00010996,2]
[360967151,1747168246137,-400.0,0.00010996,2]
[360967152,1747168246147,-400.0,0.00010996,2]
[360967153,1747168246156,-400.0,0.00010999,2]
[360967154,1747168246166,-4483.33,0.00010999,2]
[360967155,1747168246176,-1378.79,0.00010999,2]
[360967156,1747168246186,-421.98644115,0.00010999,2]
[360967157,1747168246196,-643.19,0.00010999,2]
[360967158,1747168246205,-400.0,0.00010999,2]
[360967159,1747168246215,-681.72,0.00010999,2]
[360967160,1747168246225,-13589.62,0.00010999,2]
[360967161,1747168246235,-460.52,0.00010999,2]
[360967162,1747168246245,-5985.35,0.00010999,2]
[360967163,1747168246255,-8134.94,0.00010999,2]
[360967164,1747168246265,-501.66,0.00010999,2]
[360967165,1747168246274,-2549.55,0.00010999,2]
[360967166,1747168246283,-549.4,0.00010999,2]
[360967167,1747168246293,-169.16377742,0.00010999,2]
[360967168,1747168246302,-300.0,0.00010999,2]
[360967169,1747168246311,-300.0,0.00010999,2]
[360967170,1747168246320,-300.0,0.00010999,2]
[360967171,1747168246329,-300.0,0.00010999,2]
[360967172,1747168246339,-635.26653338,0.00010999,2]
[360967173,1747168246348,-1321916.04795762,0.00010999,2]
[360967174,1747168246358,-1271862.44240314,0.00011,2]
[360967175,1747168246367,-5007318.93028748,0.00011,2]
[360967237,1747168247038,-500.0,0.00010438,2]
[360967239,1747168247049,-1727.12767261,0.00011,2]
[360967246,1747168247107,-42756.53683562,0.00011,2]
[360967248,1747168247121,-841.58160574,0.00011,2]
[360967294,1747168248100,-863.1,0.00010994,2]
[360967295,1747168248110,-667.26492678,0.00010994,2]
[360967296,1747168248203,-391.47507322,0.00010994,2]
[360967297,1747168248212,-1130.39,0.00010996,2]
[360967298,1747168248222,-40057.66037128,0.00011,2]
[360967299,1747168248880,-400.0,0.00010993,2]
[360967300,1747168248891,-10077.91399999,0.00011,2]
[360967301,1747168248903,-11614.4530472,0.00011,2]
[360967302,1747168248915,-1871.2224896,0.00011,2]
[360967303,1747168248948,-258.04,0.00011,2]
[360967304,1747168769361,-2000.0,0.00015,14]
[360967305,1747169043482,150.1753041,0.00015,20]
[360967306,1747169181166,-833.0,0.00010085,2]
[360967307,1747169181191,-23900.0,0.00010086,2]
[360967308,1747169181216,-1000.0,0.00010092,2]
[360967309,1747169181245,-496.67,0.0001014,2]
[360967310,1747169181268,-521.95187316,0.00010894,2]
[360967311,1747169181290,-150.0,0.00010894,2]
[360967312,1747169181313,-250.0,0.00010895,2]
[360967313,1747169181336,-2262.201,0.00010895,2]
[360967314,1747169181358,-175.242,0.00010895,2]
[360967315,1747169181381,-16160.93512684,0.00010895,2]
[360967345,1747169432201,-250.0,0.00010161,2]
[360967346,1747169432211,-207.4,0.00010889,2]
[360967347,1747169432221,-300.0,0.00010894,2]
[360967348,1747169432231,-8999.21906343,0.00010895,2]
[360967349,1747169432338,-9052.36493354,0.00010895,2]
[360967350,1747169432349,-6347.31347619,0.00010895,2]
[360967351,1747169432359,-150.0,0.00010899,2]
[360967352,1747169432368,-700.46722308,0.000109,2]
[360967353,1747169432377,-1174.21930073,0.000109,2]
[360967440,1747169440147,-10459.08672348,0.000109,2]
[360967441,1747169440304,-300.65479366,0.000109,2]
[360967442,1747169440511,-163.24485339,0.000109,2]
[360967443,1747169441703,-633.03720533,0.000109,2]
[360967444,1747169441715,-1949.03223221,0.000109,2]
[360967445,1747169441724,-628.2337674,0.00010944,2]
[360967446,1747169441734,-530.52,0.00010944,2]
[360967447,1747169441743,-14.08203629,0.00010959,2]
[360967448,1747169441754,-394.20200095,0.00010959,2]
[360967450,1747169441766,-91.71596276,0.00010959,2]
[360967452,1747169441775,-500.0,0.00010959,2]
[360967454,1747169441784,-500.0,0.00010959,2]
[360967455,1747169441793,-500.0,0.00010959,2]
[360967457,1747169441802,-627.71879793,0.00010959,2]
[360967459,1747169441812,-500.0,0.00010973,2]
[360967461,1747169441821,-500.0,0.00010973,2]
[360967462,1747169441831,-500.0,0.00010973,2]
[360967463,1747169441840,-505.20352269,0.00010973,2]
[360967464,1747169441849,-500.0,0.00010973,2]
[360967465,1747169441858,-500.0,0.00010973,2]
[360967466,1747169441867,-500.0,0.00010973,2]
[360967467,1747169441877,-500.0,0.00010973,2]
[360967468,1747169441886,-500.0,0.00010973,2]
[360967469,1747169441896,-400.0,0.00010992,2]
[360967470,1747169441906,-400.0,0.00010992,2]
[360967471,1747169441916,-400.0,0.00010992,2]
[360967472,1747169441926,-898.05,0.00010992,2]
[360967473,1747169441936,-400.0,0.00010992,2]
[360967474,1747169441945,-400.0,0.00010992,2]
[360967475,1747169441955,-159.144313,0.00010992,2]
[360967476,1747169441964,-1757.823004,0.00010992,2]
[360967477,1747169441973,-400.0,0.00010992,2]
[360967478,1747169441983,-75.11724808,0.00010992,2]
[360967479,1747169441995,-260.36526192,0.00010992,2]
[360967480,1747169442004,-1838.02313808,0.00010992,2]
[360967512,1747169443156,-116.10686192,0.00010992,2]
[360967513,1747169443166,-400.0,0.00010992,2]
[360967514,1747169443176,-494.62,0.00010992,2]
[360967515,1747169443186,-39.05551223,0.00010992,2]
[360967516,1747169443348,-360.94448777,0.00010992,2]
[360967517,1747169443357,-139.05551223,0.00010992,2]
[360967518,1747169443374,-1472.84448777,0.00010992,2]
[360967519,1747169443383,-400.0,0.00010992,2]
[360967520,1747169443392,-575.72,0.00010992,2]
[360967521,1747169443403,-400.0,0.00010992,2]
[360967522,1747169443412,-400.0,0.00010992,2]
[360967523,1747169443422,-400.0,0.00010992,2]
[360967524,1747169443432,-465.75,0.00010992,2]
[360967525,1747169443441,-680.49,0.00010992,2]
[360967526,1747169443451,-400.0,0.00010992,2]
[360967527,1747169443461,-803.04,0.00010992,2]
[360967528,1747169443470,-400.0,0.00010992,2]
[360967529,1747169443481,-400.0,0.00010992,2]
[360967530,1747169443490,-400.0,0.00010992,2]
[360967531,1747169443499,-400.0,0.00010992,2]
[360967532,1747169443508,-400.0,0.00010992,2]
[360967533,1747169443517,-400.0,0.00010992,2]
[360967534,1747169443526,-400.0,0.00010992,2]
[360967535,1747169443536,-531.26,0.00010992,2]
[360967537,1747169443546,-651.74,0.00010992,2]
[360967538,1747169443555,-477.37,0.00010992,2]
[360967539,1747169443564,-320.94557915,0.00010992,2]
[360967540,1747169443814,-79.05442085,0.00010992,2]
[360967541,1747169443823,-438.46,0.00010992,2]
[360967542,1747169443833,-147.64557715,0.00010992,2]
[360967543,1747169443844,-252.35442285,0.00010992,2]
[360967544,1747169443853,-639.64557715,0.00010992,2]
[360967545,1747169446273,-3.47442285,0.00010992,2]
[360967546,1747169446283,-400.0,0.00010992,2]
[360967547,1747169446293,-400.0,0.00010992,2]
[360967548,1747169446303,-400.0,0.00010992,2]
[360967549,1747169446312,-400.0,0.00010992,2]
[360967550,1747169446322,-425.09248279,0.00010992,2]
[360967551,1747169446332,-400.0,0.00010992,2]
[360967552,1747169446341,-1117.06,0.00010992,2]
[360967553,1747169446351,-400.0,0.00010992,2]
[360967554,1747169446361,-400.0,0.00010992,2]
[360967555,1747169446370,-400.0,0.00010992,2]
[360967556,1747169446379,-400.0,0.00010992,2]
[360967557,1747169446389,-550.38,0.00010992,2]
[360967558,1747169446399,-400.0,0.00010992,2]
[360967559,1747169446408,-489.66,0.00010992,2]
[360967560,1747169446418,-400.0,0.00010992,2]
[360967561,1747169446428,-1105.92,0.00010992,2]
[360967562,1747169446438,-400.0,0.00010992,2]
[360967564,1747169446447,-1032.45,0.00010992,2]
[360967566,1747169446457,-478.21,0.00010992,2]
[360967568,1747169446466,-4159.25,0.00010992,2]
[360967569,1747169446475,-494.04,0.00010992,2]
[360967571,1747169446487,-400.0,0.00010992,2]
[360967573,1747169446496,-418.28,0.00010992,2]
[360967575,1747169446505,-400.0,0.00010992,2]
[360967577,1747169446515,-400.0,0.00010992,2]
[360967579,1747169446525,-613.35,0.00010992,2]
[360967581,1747169446534,-400.0,0.00010992,2]
[360967583,1747169446544,-400.0,0.00010992,2]
[360967585,1747169446553,-928.65,0.00010992,2]
[360967587,1747169446563,-685.77,0.00010992,2]
[360967589,1747169446572,-400.0,0.00010992,2]
[360967591,1747169446582,-400.0,0.00010992,2]
[360967593,1747169446591,-400.0,0.00010992,2]
[360967595,1747169446601,-444.06,0.00010992,2]
[360967597,1747169446610,-5263.37,0.00010992,2]
[360967599,1747169446619,-433.48,0.00010992,2]
[360967600,1747169446628,-400.0,0.00010992,2]
[360967602,1747169446638,-1078.16,0.00010992,2]
[360967604,1747169446647,-614.52,0.00010992,2]
[360967606,1747169446657,-400.0,0.00010993,2]
[360967608,1747169446666,-125.28873116,0.00010993,2]
[360967614,1747169446720,-274.71126884,0.00010993,2]
[360967616,1747169446730,-400.0,0.00010993,2]
[360967618,1747169446739,-400.0,0.00010993,2]
[360967620,1747169446749,-400.0,0.00010993,2]
[360967622,1747169446759,-599.04,0.00010993,2]
[360967624,1747169446768,-400.0,0.00010993,2]
[360967625,1747169446777,-400.0,0.00010993,2]
[360967627,1747169446786,-400.0,0.00010993,2]
[360967629,1747169446795,-402.98,0.00010993,2]
[360967631,1747169446804,-400.0,0.00010993,2]
[360967633,1747169446814,-400.0,0.00010993,2]
[360967635,1747169446824,-400.0,0.00010993,2]
[360967637,1747169446833,-400.0,0.00010993,2]
[360967639,1747169446842,-400.0,0.00010993,2]
[360967641,1747169446851,-400.0,0.00010993,2]
[360967643,1747169446861,-400.0,0.00010993,2]
[360967644,1747169446870,-400.0,0.00010993,2]
[360967646,1747169446879,-337.13000175,0.00010993,2]
[360967648,1747169446889,-400.0,0.00010993,2]
[360967650,1747169446899,-400.0,0.00010993,2]
[360967652,1747169446908,-400.0,0.00010993,2]
[360967654,1747169446917,-400.0,0.00010993,2]
[360967656,1747169446926,-572.35,0.00010993,2]
[360967658,1747169446936,-475.62,0.00010993,2]
[360967660,1747169446946,-338.12127004,0.00010993,2]
[360967662,1747169446955,-400.0,0.00010993,2]
[360967664,1747169446965,-400.0,0.00010993,2]
[360967666,1747169446973,-400.0,0.00010993,2]
[360967668,1747169446985,-799.31,0.00010993,2]
[360967670,1747169446994,-210.36381264,0.00010993,2]
[360967672,1747169447004,-400.0,0.00010993,2]
[360967693,1747169447204,-420.89,0.00010993,2]
[360967695,1747169447220,-400.0,0.00010993,2]
[360967697,1747169447230,-400.0,0.00010993,2]
[360967699,1747169447240,-601.28,0.00010993,2]
[360967701,1747169447249,-400.0,0.00010993,2]
[360967703,1747169447259,-400.0,0.00010993,2]
[360967705,1747169447268,-697.3,0.00010993,2]
[360967707,1747169447277,-400.0,0.00010993,2]
[360967709,1747169447286,-400.0,0.00010993,2]
[360967711,1747169447295,-400.0,0.00010993,2]
[360967712,1747169447305,-400.0,0.00010993,2]
[360967715,1747169447315,-547.58,0.00010993,2]
[360967716,1747169447325,-400.0,0.00010993,2]
[360967718,1747169447335,-400.0,0.00010993,2]
[360967720,1747169447344,-400.0,0.00010993,2]
[360967722,1747169447354,-511.44,0.00010993,2]
[360967724,1747169447363,-400.0,0.00010993,2]
[360967726,1747169447372,-400.0,0.00010993,2]
[360967728,1747169447383,-400.0,0.00010993,2]
[360967730,1747169447392,-400.0,0.00010993,2]
[360967732,1747169447401,-400.0,0.00010993,2]
[360967734,1747169447411,-400.0,0.00010993,2]
[360967736,1747169447420,-400.0,0.00010993,2]
[360967738,1747169447430,-549.79,0.00010993,2]
[360967740,1747169447438,-400.0,0.00010993,2]
[360967742,1747169447448,-405.75,0.00010993,2]
[360967744,1747169447457,-446.04,0.00010993,2]
[360967746,1747169447470,-578.72,0.00010993,2]
[360967747,1747169447479,-206.64849777,0.00010993,2]
[360967749,1747169447488,-476.62401399,0.00010993,2]
[360967751,1747169447498,-428.26134891,0.00010993,2]
[360967753,1747169447507,-400.0,0.00010993,2]
[360967755,1747169447517,-400.0,0.00010993,2]
[360967757,1747169447527,-540.00695184,0.00010993,2]
[360967759,1747169447536,-400.0,0.00010993,2]
[360967761,1747169447546,-400.0,0.00010993,2]
[360967763,1747169447555,-400.0,0.00010993,2]
[360967765,1747169447565,-400.0,0.00010993,2]
[360967767,1747169447574,-400.0,0.00010993,2]
[360967769,1747169447583,-468.83,0.00010993,2]
[360967771,1747169447592,-400.0,0.00010993,2]
[360967772,1747169447601,-400.0,0.00010993,2]
[360967774,1747169447610,-400.0,0.00010993,2]
[360967776,1747169447620,-400.0,0.00010993,2]
[360967778,1747169447629,-400.0,0.00010993,2]
[360967780,1747169447638,-400.0,0.00010993,2]
[360967782,1747169447647,-400.0,0.00010993,2]
[360967784,1747169447656,-1019.83,0.00010993,2]
[360967786,1747169447665,-400.0,0.00010993,2]
[360967788,1747169447676,-400.0,0.00010993,2]
[360967790,1747169447685,-400.0,0.00010993,2]
[360967792,1747169447694,-400.0,0.00010993,2]
[360967793,1747169447703,-461.27,0.00010993,2]
[360967795,1747169447713,-400.0,0.00010993,2]
[360967797,1747169447722,-400.0,0.00010993,2]
[360967799,1747169447733,-352.75445753,0.00010993,2]
[360967801,1747169447742,-400.0,0.00010993,2]
[360967803,1747169447751,-464.11,0.00010993,2]
[360967805,1747169447763,-400.0,0.00010993,2]
[360967807,1747169447772,-400.0,0.00010993,2]
[360967809,1747169447781,-594.65130314,0.00010993,2]
[360967811,1747169447789,-400.0,0.00010993,2]
[360967813,1747169447798,-400.0,0.00010993,2]
[360967815,1747169447807,-400.0,0.00010993,2]
[360967817,1747169447816,-400.0,0.00010993,2]
[360967819,1747169447825,-1070.49,0.00010993,2]
[360967820,1747169447834,-400.0,0.00010993,2]
[360967822,1747169447843,-685.98,0.00010993,2]
[360967824,1747169447852,-599.33,0.00010993,2]
[360967826,1747169447862,-400.0,0.00010993,2]
[360967828,1747169447871,-400.0,0.00010993,2]
[360967830,1747169447880,-400.0,0.00010993,2]
[360967832,1747169447889,-400.0,0.00010993,2]
[360967834,1747169447898,-400.0,0.00010993,2]
[360967836,1747169447907,-488.69,0.00010993,2]
[360967838,1747169447916,-400.0,0.00010993,2]
[360967840,1747169447925,-438.70002342,0.00010993,2]
[360967842,1747169447934,-400.0,0.00010993,2]
[360967844,1747169447944,-400.0,0.00010993,2]
[360967846,1747169447953,-400.0,0.00010993,2]
[360967848,1747169447962,-400.0,0.00010993,2]
[360967849,1747169447971,-400.0,0.00010993,2]
[360967850,1747169447983,-1035.38,0.00010993,2]
[360967851,1747169447992,-400.0,0.00010993,2]
[360967852,1747169448001,-490.33816886,0.00010993,2]
[360967853,1747169448010,-400.0,0.00010993,2]
[360967854,1747169448020,-400.0,0.00010993,2]
[360967855,1747169448029,-400.0,0.00010993,2]
[360967856,1747169448039,-400.0,0.00010993,2]
[360967857,1747169448048,-551.06,0.00010993,2]
[360967858,1747169448058,-632.85925507,0.00010993,2]
[360967905,1747169639140,-150.0,0.00015,14]
[360967907,1747169776342,1565.57,8.219e-05,2]
[360967908,1747170020136,450.0,0.0001,2]
[360967909,1747170064550,450.0,0.0001,2]
[360967910,1747170099385,-300.0,0.000101,2]
[360967911,1747170099419,-500.0,0.00010101,2]
[360967912,1747170099452,-500.0,0.00010101,2]
[360967913,1747170099485,-500.0,0.00010101,2]
[360967914,1747170099518,-500.0,0.00010101,2]
[360967915,1747170099745,-500.0,0.00010101,2]
[360967916,1747170099776,-410.79910124,0.00010101,2]
[360967917,1747170099803,-1200.0,0.00010102,2]
[360967918,1747170099829,-300.0,0.00010102,2]
[360967919,1747170099855,-16023.30735152,0.00010103,2]
[360967956,1747170632484,-250.0,0.00010059,2]
[360967957,1747170632494,-500.0,0.00010097,2]
[360967958,1747170632503,-500.0,0.00010097,2]
[360967959,1747170632512,-500.0,0.00010097,2]
[360967960,1747170632522,-500.0,0.00010097,2]
[360967961,1747170632532,-500.0,0.00010097,2]
[360967962,1747170632542,-500.0,0.00010097,2]
[360967963,1747170632551,-500.0,0.00010097,2]
[360967964,1747170632560,-500.0,0.00010097,2]
[360967965,1747170632570,-298.3357866,0.00010097,2]
[360967966,1747170632604,-201.6642134,0.00010097,2]
[360967967,1747170632614,-277.45854269,0.00010097,2]
[360967968,1747170632624,-1200.0,0.00010099,2]
[360967969,1747170632634,-146.85203505,0.00010099,2]
[360967971,1747170632663,-153.14796495,0.00010099,2]
[360967973,1747170632673,-150.0,0.00010102,2]
[360967975,1747170632682,-79.9807933,0.00010103,2]
[360967977,1747170632831,-5006.71833634,0.00010103,2]
[360967978,1747170632953,-415.87469936,0.00010103,2]
[360967979,1747170632964,-1231.85132041,0.00010103,2]
[360967980,1747170632975,-578.59140228,0.00010103,2]
[360967981,1747170632986,-430.25086577,0.00010103,2]
[360967982,1747170633125,-133.42523102,0.00010103,2]
[360967983,1747170633135,-1000.0,0.00010125,2]
[360967984,1747170633144,-162.44,0.00010125,2]
[360967985,1747170633154,-1041.08,0.00010207,2]
[360967986,1747170633163,-173.4,0.00010279,2]
[360967987,1747170633172,-250.0,0.00010425,2]
[360967988,1747170633182,-1565.57,0.00010482,2]
[360967989,1747170633191,-207.4,0.00010886,2]
[360967990,1747170633201,-2500.0,0.00010891,2]
[360967991,1747170633210,-176.87229018,0.00010891,2]
[360967992,1747170633220,-1685.9636,0.00010891,2]
[360967993,1747170633230,-971.2302,0.00010892,2]
[360967994,1747170633239,-1902.851,0.00010892,2]
[360967995,1747170633248,-175.243,0.00010892,2]
[360967996,1747170633258,-160.07198194,0.00010892,2]
[360967997,1747170633267,-72257.81940862,0.00010893,2]
[360967998,1747170633278,-1522.69029138,0.00010893,2]
[360967999,1747170633289,-179.56307149,0.00010893,2]
[360968000,1747170633298,-1000.0,0.000109,2]
[360968001,1747170633308,-466.97814872,0.000109,2]
[360968002,1747170633318,-502.5870139,0.00010944,2]
[360968003,1747170633328,-500.0,0.00010973,2]
[360968004,1747170633338,-500.0,0.00010973,2]
[360968005,1747170633348,-151.0,0.00010985,2]
[360968006,1747170633358,-287.61899177,0.00010985,2]
[360968007,1747170633367,-668.65185757,0.00010985,2]
[360968008,1747170633376,-317.63326669,0.0001099,2]
[360968009,1747170633386,-37647.06405382,0.0001099,2]
[360968010,1747170633398,-4297.54566169,0.0001099,2]
[360968011,1747170633409,-5631.21966337,0.0001099,2]
[360968012,1747170633420,-12906.20841283,0.0001099,2]
[360968013,1747170633492,-556.26072989,0.0001099,2]
[360968014,1747170633504,-1056.95284929,0.0001099,2]
[360968015,1747170633516,-4906.28337191,0.0001099,2]
[360968016,1747170633527,-27999.30164108,0.0001099,2]
[360968017,1747170633618,-929.25693706,0.0001099,2]
[360968018,1747170633676,-1800.0,0.0001099,2]
[360968019,1747170638274,-405.3356786,0.0001099,2]
[360968020,1747170638298,-349.03655998,0.0001099,2]
[360968021,1747170638317,-567771.12540825,0.0001099,2]
[360968022,1747170638341,-28935.22710385,0.0001099,2]
[360968023,1747170638352,-8431.1612707,0.0001099,2]
[360968024,1747170638419,-24944.34423512,0.0001099,2]
[360968025,1747170638431,-534.82997,0.0001099,2]
[360968026,1747170638442,-519.750011,0.0001099,2]
[360968027,1747170638454,-1068.21900387,0.0001099,2]
[360968028,1747170638468,-26536.75640405,0.0001099,2]
[360968090,1747170640371,-19816.92653172,0.0001099,2]